fUST/lending_fUST_20251023
["ID","MTS","AMOUNT","RATE_DAILY","PERIOD"]
[392094160,1761155432789,-500.0,0.00023775,2]
[392094162,1761155432799,-500.0,0.00023775,2]
[392094163,1761155432807,-500.0,0.00023775,2]
[392094164,1761155432817,-500.0,0.00023775,2]
[392094165,1761155432826,-500.0,0.00023775,2]
[392094166,1761155432835,-500.0,0.00023775,2]
[392094167,1761155432845,-500.0,0.00023775,2]
[392094168,1761155432854,-500.0,0.00023775,2]
[392094169,1761155432863,-500.0,0.00023775,2]
[392094170,1761155432872,-500.0,0.00023775,2]
[392094171,1761155432882,-500.0,0.00023775,2]
[392094172,1761155432891,-500.0,0.00023775,2]
[392094173,1761155432900,-500.0,0.00023775,2]
[392094174,1761155432910,-500.0,0.00023775,2]
[392094175,1761155432919,-500.0,0.00023775,2]
[392094176,1761155432928,-500.0,0.00023775,2]
[392094177,1761155432937,-500.0,0.00023775,2]
[392094179,1761155432947,-500.0,0.00023775,2]
[392094181,1761155432956,-500.0,0.00023775,2]
[392094183,1761155432965,-500.0,0.00023775,2]
[392094185,1761155432974,-500.0,0.00023775,2]
[392094186,1761155432983,-500.0,0.00023775,2]
[392094188,1761155432992,-500.0,0.00023775,2]
[392094190,1761155433001,-500.0,0.00023775,2]
[392094191,1761155433011,-500.0,0.00023775,2]
[392094193,1761155433020,-500.0,0.00023775,2]
[392094195,1761155433030,-500.0,0.00023775,2]
[392094197,1761155433039,-500.0,0.00023775,2]
[392094198,1761155433048,-500.0,0.00023775,2]
[392094200,1761155433058,-500.0,0.00023775,2]
[392094202,1761155433067,-500.0,0.00023775,2]
[392094203,1761155433076,-500.0,0.00023775,2]
[392094204,1761155433085,-500.0,0.00023775,2]
[392094205,1761155433095,-500.0,0.00023775,2]
[392094206,1761155433104,-500.0,0.00023775,2]
[392094207,1761155433113,-500.0,0.00023775,2]
[392094208,1761155433123,-500.0,0.00023775,2]
[392094209,1761155433132,-500.0,0.00023775,2]
[392094210,1761155433142,-500.0,0.00023775,2]
[392094211,1761155433152,-500.0,0.00023775,2]
[392094212,1761155433162,-500.0,0.00023775,2]
[392094213,1761155433172,-500.0,0.00023775,2]
[392094214,1761155433181,-500.0,0.00023775,2]
[392094215,1761155433190,-500.0,0.00023775,2]
[392094216,1761155433199,-500.0,0.00023775,2]
[392094217,1761155433209,-500.0,0.00023775,2]
[392094218,1761155433218,-412.66811381,0.00023775,2]
[392094219,1761155433227,-500.0,0.00023775,2]
[392094220,1761155433236,-500.0,0.00023775,2]
[392094221,1761155433248,-500.0,0.00023775,2]
[392094222,1761155433258,-500.0,0.00023775,2]
[392094224,1761155433268,-500.0,0.00023775,2]
[392094226,1761155433278,-500.0,0.00023775,2]
[392094228,1761155433288,-500.0,0.00023775,2]
[392094229,1761155433297,-500.0,0.00023775,2]
[392094231,1761155433307,-500.0,0.00023775,2]
[392094233,1761155433316,-500.0,0.00023775,2]
[392094234,1761155433327,-500.0,0.00023775,2]
[392094235,1761155433336,-163.94,0.00023777,4]
[392094236,1761155433345,-500.0,0.00023777,2]
[392094237,1761155433354,-500.0,0.00023777,2]
[392094238,1761155433368,-500.0,0.00023777,2]
[392094239,1761155433378,-1170.86,0.00023779,3]
[392094240,1761155433388,-585.43,0.00023779,3]
[392094241,1761155433397,-292.71,0.00023779,3]
[392094242,1761155433407,-878.16,0.00023779,3]
[392094243,1761155433416,-2233.35,0.00023779,10]
[392094244,1761155433425,-500.0,0.00023787,2]
[392094245,1761155433435,-500.0,0.00023788,2]
[392094246,1761155433445,-262.65674044,0.00023788,2]
[392094247,1761155433454,-185.8055551,0.00023788,2]
[392094248,1761155433464,-86016.54248484,0.00023789,2]
[392094249,1761155433507,-662.31702851,0.00023789,2]
[392094250,1761155434040,-4624.983028,0.00023789,2]
[392094251,1761155434109,-256.04000004,0.00023789,2]
[392094267,1761155437937,-96751.27689292,0.00023789,2]
[392094268,1761155438045,-7873.37303156,0.00023789,2]
[392094269,1761155438061,-3713.71357497,0.00023789,2]
[392094270,1761155438072,-301.13533738,0.00023789,2]
[392094271,1761155438083,-3564.6,0.00023789,2]
[392094338,1761155440217,-2149.62566651,0.00023789,2]
[392094340,1761155440228,-22455.6784205,0.00023789,2]
[392094345,1761155440271,-15169.6794684,0.00023789,2]
[392094377,1761155443304,-43017.63659645,0.00023789,2]
[392094395,1761155443461,-304.32781908,0.00023774,2]
[392094396,1761155443470,-682.81224683,0.00023789,2]
[392094430,1761155446461,-500.0,0.00023774,2]
[392094432,1761155446470,-500.0,0.00023774,2]
[392094434,1761155446480,-500.0,0.00023774,2]
[392094436,1761155446490,-500.0,0.00023774,2]
[392094438,1761155446499,-500.0,0.00023774,2]
[392094440,1761155446507,-500.0,0.00023774,2]
[392094442,1761155446517,-82760.58622309,0.00023789,2]
[392094444,1761155446527,-300.96963527,0.0002399,2]
[392094445,1761155446537,-500.0,0.00024062,2]
[392094448,1761155446546,-262.42415617,0.00024065,2]
[392094450,1761155446556,-472.36348111,0.00024073,2]
[392094452,1761155446566,-1909.635445,0.00024091,2]
[392094454,1761155446577,-10147.4219533,0.00024119,2]
[392094456,1761155446586,-302.1501839,0.00024119,2]
[392094458,1761155446595,-5633.04992106,0.00024141,2]
[392094460,1761155446604,-500.0,0.00024336,2]
[392094462,1761155446613,-839.75729976,0.0002439,2]
[392094464,1761155446623,-500.0,0.0002461,2]
[392094466,1761155446632,-500.0,0.00024773,2]
[392094468,1761155446641,-160.13852187,0.00024773,2]
[392094470,1761155446650,-500.0,0.00024773,2]
[392094472,1761155446660,-151.0,0.000248,6]
[392094474,1761155446668,-414.45327956,0.000248,2]
[392094476,1761155446677,-151.0,0.00024829,7]
[392094478,1761155446686,-151.0,0.00024829,7]
[392094480,1761155446695,-153.537612,0.00024829,7]
[392094482,1761155446703,-151.0,0.00024829,7]
[392094483,1761155446713,-151.0,0.00024829,7]
[392094485,1761155446721,-8220.8546281,0.00024839,2]
[392094487,1761155446731,-151.0,0.00024839,7]
[392094489,1761155446740,-500.0,0.00024884,2]
[392094491,1761155446749,-207.22663978,0.0002489,2]
[392094493,1761155446758,-151.0,0.000249,7]
[392094495,1761155446767,-178.15124216,0.000249,2]
[392094497,1761155446776,-151.0,0.000249,7]
[392094499,1761155446786,-151.0,0.000249,7]
[392094501,1761155446795,-256.380812,0.000249,7]
[392094503,1761155446804,-151.0,0.000249,8]
[392094505,1761155446813,-151.0,0.000249,7]
[392094507,1761155446822,-151.0,0.000249,7]
[392094509,1761155446831,-151.0,0.000249,7]
[392094511,1761155446840,-15032.68448577,0.000249,2]
[392094512,1761155446932,-500.0,0.00023774,2]
[392094513,1761155446942,-8037.30000014,0.000249,2]
[392094516,1761155507297,435.95,0.00021404,2]
[392094517,1761155507695,871.9,0.0002335,2]
[392094518,1761155565746,-1292.45,0.00023665,10]
[392094519,1761155565775,-1077.04,0.00023665,10]
[392094520,1761155565803,-897.54,0.00023665,10]
[392094521,1761155565832,-1200.0,0.00023673,2]
[392094522,1761155565860,-300.0,0.00023674,2]
[392094523,1761155565889,-183.85971831,0.00023674,2]
[392094524,1761155566120,-500.0,0.00023674,2]
[392094525,1761155566152,-454.87608076,0.00023674,2]
[392094526,1761155566181,-500.0,0.00023674,2]
[392094527,1761155566210,-500.0,0.00023674,2]
[392094528,1761155566238,-500.0,0.00023674,2]
[392094529,1761155566267,-500.0,0.00023674,2]
[392094530,1761155566300,-500.0,0.00023674,2]
[392094531,1761155566328,-500.0,0.00023674,2]
[392094532,1761155566356,-500.0,0.00023674,2]
[392094533,1761155566384,-349.88511311,0.00023674,2]
[392094534,1761155583339,-359.47,0.00023674,2]
[392094535,1761155583368,-500.0,0.00023674,2]
[392094536,1761155583397,-500.0,0.00023674,2]
[392094537,1761155583427,-219.330581,0.00023674,2]
[392094538,1761155583455,-500.0,0.00023674,2]
[392094539,1761155583483,-500.0,0.00023674,2]
[392094540,1761155583512,-500.0,0.00023674,2]
[392094541,1761155583541,-500.0,0.00023674,2]
[392094542,1761155583570,-500.0,0.00023674,2]
[392094543,1761155584563,-747.95,0.00023665,10]
[392094544,1761155584591,-300.0,0.00023673,2]
[392094545,1761155584650,-4912.95683281,0.00023675,2]
[392094546,1761155584957,-10000.01,0.00023675,2]
[392094547,1761155586481,419.31,0.0002183,2]
[392094549,1761155617054,1042.1079761,0.00022906,2]
[392094550,1761155666354,413.97,0.00021524,2]
[392094551,1761155666749,827.94,0.00023481,2]
[392094552,1761155678032,1619.8918408,0.00023605,2]
[392094555,1761155724566,-816.29,0.00023665,3]
[392094556,1761155724596,-408.14,0.00023665,3]
[392094557,1761155724626,-204.07,0.00023665,3]
[392094558,1761155724656,-470.19,0.00023665,10]
[392094559,1761155724686,-612.25,0.00023665,3]
[392094560,1761155724714,-277.0,0.00023672,2]
[392094561,1761155724741,-208.0,0.00023672,2]
[392094562,1761155724769,-300.0,0.00023672,2]
[392094563,1761155724799,-1200.0,0.00023672,2]
[392094564,1761155724827,-439.01055584,0.00023673,2]
[392094565,1761155727757,-130.10888832,0.00023673,2]
[392094566,1761155727784,-1146.6544688,0.00023673,2]
[392094567,1761155727810,-500.0,0.00023673,2]
[392094568,1761155727837,-500.0,0.00023673,2]
[392094569,1761155727866,-500.0,0.00023673,2]
[392094570,1761155727894,-409.84979979,0.00023673,2]
[392094571,1761155727922,-500.0,0.00023673,2]
[392094572,1761155727948,-500.0,0.00023673,2]
[392094573,1761155727975,-500.0,0.00023673,2]
[392094574,1761155728007,-126.78368618,0.00023673,2]
[392094575,1761155736569,5000.0,0.00023501,2]
[392094576,1761155739371,-694.58,0.00023665,10]
[392094577,1761155739405,-578.82,0.00023665,10]
[392094578,1761155739435,-373.21631382,0.00023673,2]
[392094579,1761155739463,-500.0,0.00023673,2]
[392094580,1761155739494,-500.0,0.00023673,2]
[392094581,1761155739524,-500.0,0.00023673,2]
[392094582,1761155739554,-500.0,0.00023673,2]
[392094583,1761155739584,-500.0,0.00023673,2]
[392094584,1761155739611,-500.0,0.00023673,2]
[392094585,1761155739640,-206.77737236,0.00023673,2]
[392094586,1761155745368,419.5,0.00021577,2]
[392094587,1761155745431,3380.1081592,0.00023501,2]
[392094588,1761155746531,-839.0,0.00023539,2]
[392094592,1761155761443,5000.0,0.00023605,2]
[392094606,1761155790844,5000.0,0.00023605,2]
[392094611,1761155812996,1619.9118408,0.00023605,2]
[392094612,1761155824207,403.48,0.00021549,2]
[392094613,1761155824608,806.97,0.00023508,2]
[392094614,1761155824948,2169.6481592,0.00023288,30]
[392094615,1761155824970,8182.2019271,0.00023288,30]
[392094628,1761155889750,165.0,0.00024,120]
[392094629,1761155903285,404.35,0.00021599,2]
[392094630,1761155931071,1886.42923476,0.00023198,2]
[392094631,1761155931370,1886.42923476,0.00023476,2]
[392094632,1761155977015,-257.92247968,0.00023568,2]
[392094633,1761155977042,-498.08316858,0.00023574,2]
[392094634,1761155977070,-2116.01923313,0.00023575,2]
[392094635,1761155977098,-1886.42923476,0.00023615,2]
[392094636,1761155977128,-113.1417677,0.00023665,10]
[392094637,1761155980629,-256.8182323,0.00023665,10]
[392094638,1761155980657,-577.63,0.00023665,10]
[392094639,1761155980684,-481.36,0.00023665,10]
[392094640,1761155980811,-401.13,0.00023665,10]
[392094641,1761155980839,-300.0,0.00023669,2]
[392094642,1761155980865,-2243.6128612,0.0002367,2]
[392094643,1761155980893,-544.0,0.00023673,2]
[392094644,1761155982338,401.11,0.00021701,2]
[392094645,1761155983932,-500.0,0.00023673,2]
[392094646,1761155983973,-500.0,0.00023673,2]
[392094647,1761155984003,-507.94063393,0.00023673,2]
[392094648,1761155984034,-500.0,0.00023673,2]
[392094649,1761155984062,-500.0,0.00023673,2]
[392094650,1761155984093,-500.0,0.00023673,2]
[392094651,1761155984126,-188.83233114,0.00023673,2]
[392094652,1761155984157,-500.0,0.00023673,2]
[392094653,1761155984185,-500.0,0.00023673,2]
[392094654,1761155984213,-500.0,0.00023673,2]
[392094655,1761155984240,-106.46406986,0.00023673,2]
[392094656,1761155986478,-393.53593014,0.00023673,2]
[392094657,1761155986506,-500.0,0.00023673,2]
[392094658,1761155986533,-595.37046997,0.00023673,2]
[392094659,1761155986566,-500.0,0.00023673,2]
[392094660,1761155986596,-500.0,0.00023673,2]
[392094661,1761155986631,-500.0,0.00023673,2]
[392094662,1761155986668,-500.0,0.00023673,2]
[392094663,1761155986697,-500.0,0.00023673,2]
[392094664,1761155986726,-500.0,0.00023673,2]
[392094665,1761155986754,-500.0,0.00023673,2]
[392094666,1761156001015,5000.0,0.00023501,2]
[392094667,1761156024283,5000.0,0.00023501,2]
[392094668,1761156046656,5000.0,0.00023501,2]
[392094669,1761156061219,431.86,0.00021564,2]
[392094670,1761156129731,165.0,0.00024,120]
[392094671,1761156141015,439.12,0.00021396,2]
[392094672,1761156141420,878.24,0.00023341,2]
[392094673,1761156154657,631.924311,0.00013699,2]
[392094674,1761156154924,631.924311,0.00020187,2]
[392094675,1761156158321,-1405.85498019,0.00023572,2]
[392094676,1761156158350,-2769.406276,0.00023654,2]
[392094677,1761156158378,-497.28,0.00023665,10]
[392094678,1761156158408,-240.52748762,0.00023665,10]
[392094681,1761156161725,-173.87251238,0.00023665,10]
[392094682,1761156161754,-345.33,0.00023665,10]
[392094683,1761156161782,-300.0,0.00023671,2]
[392094684,1761156161810,-1200.0,0.00023671,2]
[392094685,1761156161838,-1200.0,0.00023672,2]
[392094686,1761156161867,-500.0,0.00023672,2]
[392094687,1761156161897,-500.0,0.00023672,2]
[392094688,1761156162017,-340.59870652,0.00023672,2]
[392094689,1761156162046,-380.4075622,0.00023672,2]
[392094690,1761156162287,-119.5924378,0.00023672,2]
[392094691,1761156162317,-500.0,0.00023672,2]
[392094692,1761156162344,-500.0,0.00023672,2]
[392094693,1761156162373,-500.0,0.00023672,2]
[392094694,1761156162403,-500.0,0.00023672,2]
[392094695,1761156162435,-500.0,0.00023672,2]
[392094696,1761156162465,-572.51313461,0.00023672,2]
[392094697,1761156162494,-385.23738119,0.00023672,2]
[392094698,1761156162522,-500.0,0.00023672,2]
[392094699,1761156162550,-500.0,0.00023672,2]
[392094700,1761156162578,-345.3240928,0.00023672,2]
[392094701,1761156162692,-154.6759072,0.00023672,2]
[392094702,1761156162721,-535.58560099,0.00023672,2]
[392094703,1761156162762,-500.0,0.00023672,2]
[392094704,1761156162797,-500.0,0.00023672,2]
[392094705,1761156162836,-500.0,0.00023672,2]
[392094706,1761156162875,-500.0,0.00023672,2]
[392094707,1761156162913,-500.0,0.00023672,2]
[392094708,1761156162952,-500.0,0.00023672,2]
[392094709,1761156162986,-500.0,0.00023672,2]
[392094710,1761156163019,-500.0,0.00023672,2]
[392094711,1761156163059,-119.48698362,0.00023672,2]
[392094712,1761156170907,-290.98,0.00023665,10]
[392094713,1761156170937,-380.51301638,0.00023672,2]
[392094714,1761156170967,-500.0,0.00023672,2]
[392094715,1761156170996,-500.0,0.00023672,2]
[392094716,1761156171025,-500.0,0.00023672,2]
[392094717,1761156171055,-500.0,0.00023672,2]
[392094718,1761156171083,-500.0,0.00023672,2]
[392094719,1761156171110,-500.0,0.00023672,2]
[392094720,1761156171138,-500.0,0.00023672,2]
[392094721,1761156171166,-500.0,0.00023672,2]
[392094722,1761156171194,-157.02396724,0.00023672,2]
[392094723,1761156171553,-342.97603276,0.00023672,2]
[392094724,1761156171581,-500.0,0.00023672,2]
[392094725,1761156171611,-500.0,0.00023672,2]
[392094726,1761156171640,-500.0,0.00023672,2]
[392094727,1761156171669,-500.0,0.00023672,2]
[392094728,1761156171697,-500.0,0.00023672,2]
[392094729,1761156171726,-500.0,0.00023672,2]
[392094730,1761156171754,-500.0,0.00023672,2]
[392094731,1761156171783,-500.0,0.00023672,2]
[392094732,1761156171811,-500.0,0.00023672,2]
[392094733,1761156177295,5000.0,0.00023501,2]
[392094734,1761156182664,1962.09305,0.00022706,2]
[392094736,1761156220107,485.34,0.00021672,2]
[392094737,1761156224353,208.0,0.00014776,30]
[392094738,1761156224726,416.0,0.00016119,30]
[392094739,1761156225124,624.01,0.00017462,30]
[392094740,1761156225564,832.01,0.00018806,30]
[392094741,1761156225990,1040.01,0.00020149,30]
[392094742,1761156226455,1248.01,0.00021492,30]
[392094743,1761156226858,1456.02,0.00022835,30]
[392094744,1761156234592,-1931.49065861,0.000236,2]
[392094745,1761156234623,-970.68,0.00023643,2]
[392094746,1761156234651,-168.15,0.00023665,3]
[392094747,1761156234680,-504.48,0.00023665,3]
[392094748,1761156234708,-402.43,0.00023665,3]
[392094749,1761156234738,-242.48,0.00023665,10]
[392094750,1761156234767,-201.21,0.00023665,3]
[392094751,1761156234795,-300.0,0.00023671,2]
[392094752,1761156236201,202.07,0.00023665,10]
[392094753,1761156238116,-500.0,0.00023672,2]
[392094754,1761156238148,-500.0,0.00023672,2]
[392094755,1761156238178,-500.0,0.00023672,2]
[392094756,1761156238208,-500.0,0.00023672,2]
[392094757,1761156238237,-627.63905294,0.00023672,2]
[392094758,1761156238265,-420.70941291,0.00023672,2]
[392094759,1761156238292,-500.0,0.00023672,2]
[392094760,1761156238319,-500.0,0.00023672,2]
[392094761,1761156238347,-500.0,0.00023672,2]
[392094762,1761156238374,-403.3130683,0.00023672,2]
[392094763,1761156242723,5000.0,0.00023501,2]
[392094764,1761156244763,-603.68,0.00023665,3]
[392094765,1761156244792,-300.0,0.00023671,2]
[392094767,1761156247682,-168.39,0.00023665,10]
[392094768,1761156250542,-96.6869317,0.00023672,2]
[392094769,1761156250573,-500.0,0.00023672,2]
[392094770,1761156250603,-500.0,0.00023672,2]
[392094771,1761156250631,-500.0,0.00023672,2]
[392094772,1761156250658,-500.0,0.00023672,2]
[392094773,1761156250687,-500.0,0.00023672,2]
[392094774,1761156250714,-500.0,0.00023672,2]
[392094775,1761156250741,-500.0,0.00023672,2]
[392094776,1761156250769,-500.0,0.00023672,2]
[392094777,1761156250796,-500.0,0.00023672,2]
[392094778,1761156250824,-204.79977571,0.00023672,2]
[392094781,1761156264817,5000.0,0.00023501,2]
[392094782,1761156285878,-841.97,0.00023665,10]
[392094783,1761156285905,-395.93,0.00023665,3]
[392094784,1761156287833,-1327.32,0.00023665,3]
[392094785,1761156289354,-7408.67486523,0.00023673,2]
[392094786,1761156290215,-10000.01,0.00023673,2]
[392094787,1761156290388,-10000.01,0.00023673,2]
[392094788,1761156296164,468.33,0.00021392,2]
[392094789,1761156296563,936.66,0.00023337,2]
[392094790,1761156302285,4774.3413333,0.00023501,2]
[392094794,1761156310029,5000.0,0.00023501,2]
[392094795,1761156332244,5000.0,0.00023501,2]
[392094796,1761156345608,976.83904954,0.00020517,2]
[392094799,1761156354393,156.23506248,0.00023501,2]
[392094800,1761156376163,450.45,0.00021388,2]
[392094801,1761156376557,900.89,0.00023333,2]
[392094802,1761156380441,193.05,0.00014499,30]
[392094803,1761156380826,386.1,0.00015817,30]
[392094804,1761156381234,579.15,0.00017135,30]
[392094805,1761156381805,772.2,0.00018453,30]
[392094806,1761156382210,965.24,0.00019771,30]
[392094807,1761156382627,1158.29,0.00021089,30]
[392094808,1761156383046,1351.34,0.00022407,30]
[392094833,1761156452790,364.45,0.00021367,2]
[392094834,1761156453190,728.91,0.0002331,2]
[392094835,1761156460258,-1230.12310771,0.00023565,2]
[392094836,1761156460287,-1200.0,0.00023599,2]
[392094837,1761156460337,-5139.76378458,0.000236,2]
[392094838,1761156467713,-4777.05768439,0.000236,2]
[392094839,1761156467741,-151.0,0.00023661,2]
[392094840,1761156467785,-143.89463122,0.00023661,2]
[392094841,1761156467984,-7.10536878,0.00023661,2]
[392094842,1761156468012,-151.0,0.00023661,2]
[392094843,1761156468039,-151.0,0.00023661,2]
[392094844,1761156468065,-151.0,0.00023661,2]
[392094845,1761156468092,-221.60135417,0.00023661,2]
[392094846,1761156468119,-300.0,0.00023664,2]
[392094847,1761156468223,-8036.5965541,0.00023665,2]
[392094848,1761156477462,225.6686667,0.00023501,2]
[392094849,1761156485188,5000.0,0.00023501,2]
[392094850,1761156493921,295.41883288,0.00016,2]
[392094851,1761156517594,12036.35878858,0.000235,2]
[392094852,1761156532011,487.54,0.00021291,2]
[392094853,1761156532440,975.09,0.00023227,2]
[392094854,1761156536223,208.95,0.00014071,30]
[392094855,1761156536632,417.89,0.00015351,30]
[392094856,1761156537039,626.84,0.0001663,30]
[392094857,1761156537464,835.79,0.00017909,30]
[392094858,1761156537873,1044.73,0.00019188,30]
[392094859,1761156538281,1253.68,0.00020468,30]
[392094860,1761156538664,1462.63,0.00021747,30]
[392094861,1761156539055,1671.57,0.00023026,30]
[392094877,1761156556848,364.3522739,0.00023014,2]
[392094878,1761156557069,273.0,0.00023065,2]
[392094925,1761156572713,273.0,0.00023202,2]
[392094927,1761156607522,373.19,0.0002129,2]
[392094928,1761156607913,746.38,0.00023226,2]
[392094987,1761156632353,-273.0,0.00023502,2]
[392094989,1761156632363,-222.27227972,0.00023509,2]
[392094991,1761156632374,-211.51821756,0.00023509,2]
[392094993,1761156632383,-273.0,0.00023516,2]
[392094995,1761156632392,-760.58455237,0.000236,2]
[392094997,1761156632403,-527.07588671,0.000236,2]
[392094999,1761156632412,-289.48923361,0.000236,2]
[392095001,1761156632422,-178.59,0.00023663,2]
[392095003,1761156632431,-300.0,0.00023664,2]
[392095005,1761156632440,-185.96932232,0.00023664,2]
[392095007,1761156632451,-114.03067768,0.00023664,2]
[392095009,1761156632460,-1200.0,0.00023664,2]
[392095011,1761156632469,-795.64,0.00023665,3]
[392095013,1761156632478,-99.70444795,0.00023665,3]
[392095015,1761156632490,-700.55555205,0.00023665,3]
[392095017,1761156632499,-400.13,0.00023665,3]
[392095019,1761156632508,-200.07,0.00023665,3]
[392095021,1761156632517,-600.21,0.00023665,3]
[392095023,1761156632526,-700.61,0.00023665,3]
[392095025,1761156632535,-350.3,0.00023665,3]
[392095027,1761156632544,-500.0,0.00023672,2]
[392095029,1761156632553,-317.31733443,0.00023672,2]
[392095031,1761156632563,-500.0,0.00023672,2]
[392095033,1761156632572,-28.27655837,0.00023672,2]
[392095035,1761156632583,-471.72344163,0.00023672,2]
[392095037,1761156632592,-500.0,0.00023672,2]
[392095039,1761156632601,-500.0,0.00023672,2]
[392095041,1761156632611,-500.0,0.00023672,2]
[392095043,1761156632621,-168.99864658,0.00023672,2]
[392095045,1761156632630,-500.0,0.00023672,2]
[392095047,1761156632639,-500.0,0.00023672,2]
[392095049,1761156632648,-412.7639053,0.00023672,2]
[392095051,1761156632657,-500.0,0.00023672,2]
[392095053,1761156632666,-500.0,0.00023672,2]
[392095055,1761156632676,-146.93101643,0.00023672,2]
[392095057,1761156632686,-353.06898357,0.00023672,2]
[392095059,1761156632696,-500.0,0.00023672,2]
[392095072,1761156632803,-500.0,0.00023672,2]
[392095074,1761156632815,-500.0,0.00023672,2]
[392095076,1761156632824,-500.0,0.00023672,2]
[392095078,1761156632835,-500.0,0.00023672,2]
[392095080,1761156632844,-500.0,0.00023672,2]
[392095082,1761156632853,-500.0,0.00023672,2]
[392095084,1761156632862,-500.0,0.00023672,2]
[392095086,1761156632872,-500.0,0.00023672,2]
[392095088,1761156632881,-500.0,0.00023672,2]
[392095090,1761156632890,-283.71833832,0.00023672,2]
[392095092,1761156632901,-170.50360166,0.00023672,2]
[392095094,1761156632910,-500.0,0.00023672,2]
[392095096,1761156632919,-500.0,0.00023672,2]
[392095098,1761156632928,-500.0,0.00023672,2]
[392095100,1761156632938,-500.0,0.00023672,2]
[392095102,1761156632947,-500.0,0.00023672,2]
[392095104,1761156632956,-500.0,0.00023672,2]
[392095106,1761156632965,-500.0,0.00023672,2]
[392095108,1761156632974,-156.75358498,0.00023672,2]
[392095110,1761156632985,-343.24641502,0.00023672,2]
[392095112,1761156632994,-156.97376725,0.00023672,2]
[392095114,1761156633004,-411.85028834,0.00023672,2]
[392095116,1761156633015,-88.14971166,0.00023672,2]
[392095118,1761156633024,-500.0,0.00023672,2]
[392095120,1761156633034,-500.0,0.00023672,2]
[392095122,1761156633043,-500.0,0.00023672,2]
[392095125,1761156633053,-500.0,0.00023672,2]
[392095127,1761156633064,-513.0213378,0.00023672,2]
[392095128,1761156633072,-19700.58702125,0.00023672,2]
[392095130,1761156633082,-360.31113483,0.00023673,2]
[392095132,1761156633091,-500.0,0.00023673,2]
[392095134,1761156633100,-500.85750236,0.00023673,2]
[392095136,1761156633109,-500.0,0.00023673,2]
[392095139,1761156633119,-500.0,0.00023673,2]
[392095141,1761156633128,-505.2485941,0.00023673,2]
[392095143,1761156633137,-500.0,0.00023673,2]
[392095144,1761156633147,-500.0,0.00023673,2]
[392095146,1761156633156,-502.14829062,0.00023673,2]
[392095148,1761156633164,-500.0,0.00023673,2]
[392095150,1761156633174,-500.0,0.00023673,2]
[392095152,1761156633182,-500.0,0.00023673,2]
[392095154,1761156633192,-500.0,0.00023673,2]
[392095156,1761156633201,-500.0,0.00023673,2]
[392095158,1761156633211,-500.0,0.00023673,2]
[392095160,1761156633220,-183.54575813,0.00023673,2]
[392095162,1761156633230,-500.0,0.00023673,2]
[392095164,1761156633239,-500.0,0.00023673,2]
[392095166,1761156633249,-501.22472656,0.00023673,2]
[392095168,1761156633262,-500.0,0.00023673,2]
[392095170,1761156633271,-500.0,0.00023673,2]
[392095172,1761156633281,-200.0,0.00023673,2]
[392095174,1761156633291,-500.0,0.00023673,2]